[Event "Irish Championship 2026"]
[Site "Talbot Hotel Stillorgan, Co.Dublin, IE"]
[Date "2026.08.09"]
[Round "9"]
[White "Ryan, Joshua"]
[Black "Fitzgerald, Niall"]
[Result "0-1"]
[Board "75"]
[TimeControl "40/5400+30:1800+30"]
[WhiteFideId "2516705"]
[BlackFideId "2511185"]
[WhiteElo "1866"]
[BlackElo "1894"]
[WhiteClock "0:39:14"]
[BlackClock "0:01:22"]
[Variant "Standard"]

1. e4 {[%clk 1:22:39]}  e5 {[%clk 1:30:53]} 2. Nf3 {[%clk 1:22:36]}  Nc6 {[%clk 1:31:18]} 3. Bb5 {[%clk 1:23:03]}  a6 {[%clk 1:31:43]}
4. Ba4 {[%clk 1:23:29]}  Nf6 {[%clk 1:32:07]} 5. O-O {[%clk 1:23:50]}  Be7 {[%clk 1:32:26]} 6. Bxc6 {[%clk 1:24:15]}  dxc6 {[%clk 1:31:26]}
7. d3 {[%clk 1:24:40]}  Qd6 {[%clk 1:16:34]} 8. Nbd2 {[%clk 1:25:02]}  b5 {[%clk 1:11:54]} 9. d4 {[%clk 1:12:34]}  Nd7 {[%clk 1:09:12]}
10. Nb3 {[%clk 1:04:37]}  exd4 {[%clk 1:05:31]} 11. Nbxd4 {[%clk 0:57:52]}  c5 {[%clk 1:04:37]} 12. Nf5 {[%clk 0:57:56]}  Qxd1 {[%clk 1:04:33]}
13. Rxd1 {[%clk 0:57:58]}  Bf6 {[%clk 0:49:19]} 14. Rb1 {[%clk 0:56:53]}  Bb7 {[%clk 0:45:54]} 15. Bf4 {[%clk 0:53:57]}  O-O-O {[%clk 0:34:04]}
16. Ng3 {[%clk 0:53:20]}  h5 {[%clk 0:25:25]} 17. h4 {[%clk 0:52:19]}  Rde8 {[%clk 0:20:10]} 18. Re1 {[%clk 0:52:16]}  Bd8 {[%clk 0:18:12]}
19. Rbd1 {[%clk 0:49:30]}  f6 {[%clk 0:16:20]} 20. Nd2 {[%clk 0:45:12]}  g5 {[%clk 0:14:59]} 21. hxg5 {[%clk 0:44:39]}  fxg5 {[%clk 0:15:27]}
22. Be3 {[%clk 0:44:48]}  Bf6 {[%clk 0:13:20]} 23. f3 {[%clk 0:41:59]}  g4 {[%clk 0:07:13]} 24. c3 {[%clk 0:40:50]}  gxf3 {[%clk 0:07:04]}
25. gxf3 {[%clk 0:40:41]}  Reg8 {[%clk 0:05:38]} 26. Kh2 {[%clk 0:40:46]}  Ne5 {[%clk 0:03:52]} 27. Rg1 {[%clk 0:39:49]}  Rd8 {[%clk 0:02:53]}
28. Bxc5 {[%clk 0:38:33]}  Rxd2+ {[%clk 0:02:56]} 29. Rxd2 {[%clk 0:37:57]}  Nxf3+ {[%clk 0:03:19]} 30. Kh3 {[%clk 0:37:43]}  Nxd2 {[%clk 0:03:32]}
31. Re1 {[%clk 0:37:45]}  h4 {[%clk 0:03:23]} 32. Nf5 {[%clk 0:37:39]}  Nxe4 {[%clk 0:02:48]} 33. Bd4 {[%clk 0:38:03]}  Bxd4 {[%clk 0:02:04]}
34. Nxd4 {[%clk 0:38:27]}  Nf2+ {[%clk 0:01:58]} 35. Kh2 {[%clk 0:38:52]}  h3 {[%clk 0:02:14]} 36. Rg1 {[%clk 0:39:15]}  Bg2 {[%clk 0:02:19]}
37. Re1 {[%clk 0:38:51]}  Ng4+ {[%clk 0:01:13]} 38. Kg1 {[%clk 0:39:16]}  Rf8 {[%clk 0:00:09]} 39. b4 {[%clk 0:39:14]}  Rf2 {[%clk 0:01:22]} 0-1

[Event "Irish Championship 2026"]
[Site "Talbot Hotel Stillorgan, Co.Dublin, IE"]
[Date "2026.08.09"]
[Round "9"]
[White "Hushpit, Lukian"]
[Black "Singhal, Vivaan"]
[Result "1-0"]
[Board "76"]
[TimeControl "40/5400+30:1800+30"]
[WhiteFideId "14189208"]
[BlackFideId "2516721"]
[WhiteElo "2088"]
[BlackElo "1878"]
[WhiteClock "0:00:58"]
[BlackClock "0:18:49"]
[Variant "Standard"]
[EndDate "2026.08.09"]
[EndTime "14:55:11"]

1. e4 {[%clk 1:30:57]}  c6 {[%clk 1:30:51]} 2. d4 {[%clk 1:31:23]}  d5 {[%clk 1:31:14]} 3. Nc3 {[%clk 1:31:50]}  dxe4 {[%clk 1:31:35]}
4. Nxe4 {[%clk 1:32:17]}  Nd7 {[%clk 1:31:54]} 5. Nf3 {[%clk 1:32:20]}  Ngf6 {[%clk 1:32:16]} 6. Nxf6+ {[%clk 1:31:56]}  Nxf6 {[%clk 1:32:34]}
7. Bd3 {[%clk 1:31:20]}  Bf5 {[%clk 1:30:56]} 8. O-O {[%clk 1:29:46]}  Bxd3 {[%clk 1:30:07]} 9. Qxd3 {[%clk 1:30:14]}  e6 {[%clk 1:30:16]}
10. Re1 {[%clk 1:29:21]}  Bd6 {[%clk 1:29:05]} 11. Bg5 {[%clk 1:29:20]}  Qc7 {[%clk 1:24:01]} 12. a4 {[%clk 1:27:09]}  h6 {[%clk 1:16:24]}
13. Bd2 {[%clk 1:21:39]}  O-O {[%clk 1:07:27]} 14. Rad1 {[%clk 1:18:53]}  Rad8 {[%clk 1:01:29]} 15. Qc4 {[%clk 1:12:44]}  c5 {[%clk 0:55:17]}
16. dxc5 {[%clk 1:06:38]}  Qxc5 {[%clk 0:44:31]} 17. Qxc5 {[%clk 1:03:37]}  Bxc5 {[%clk 0:44:58]} 18. h3 {[%clk 1:03:45]}  Nd5 {[%clk 0:38:03]}
19. Ne5 {[%clk 1:01:58]}  Nb4 {[%clk 0:34:42]} 20. Bxb4 {[%clk 1:01:47]}  Bxb4 {[%clk 0:34:49]} 21. c3 {[%clk 1:02:01]}  Bd6 {[%clk 0:31:42]}
22. Nf3 {[%clk 0:57:12]}  Be7 {[%clk 0:29:58]} 23. Kf1 {[%clk 0:52:21]}  Rxd1 {[%clk 0:27:59]} 24. Rxd1 {[%clk 0:52:48]}  Rd8 {[%clk 0:27:35]}
25. Ra1 {[%clk 0:52:22]}  Bf6 {[%clk 0:25:31]} 26. Ke2 {[%clk 0:52:34]}  Kf8 {[%clk 0:25:18]} 27. Ra3 {[%clk 0:53:00]}  Ke7 {[%clk 0:22:25]}
28. Rb3 {[%clk 0:53:23]}  Rd7 {[%clk 0:22:40]} 29. Nd2 {[%clk 0:52:59]}  Rc7 {[%clk 0:22:12]} 30. Rb4 {[%clk 0:51:53]}  Be5 {[%clk 0:20:04]}
31. Rb5 {[%clk 0:48:02]}  Bd6 {[%clk 0:18:09]} 32. Kd3 {[%clk 0:46:57]}  b6 {[%clk 0:15:41]} 33. Nb3 {[%clk 0:45:12]}  Kd7 {[%clk 0:15:01]}
34. a5 {[%clk 0:42:28]}  Kc6 {[%clk 0:13:42]} 35. c4 {[%clk 0:39:44]}  Bc5 {[%clk 0:11:30]} 36. axb6 {[%clk 0:34:07]}  axb6 {[%clk 0:11:24]}
37. Nxc5 {[%clk 0:32:27]}  bxc5 {[%clk 0:11:33]} 38. Kc3 {[%clk 0:32:53]}  Rb7 {[%clk 0:07:37]} 39. Ra5 {[%clk 0:33:06]}  e5 {[%clk 0:07:15]}
40. Ra8 {[%clk 0:32:51]}  f6 {[%clk 0:07:20]} 41. Rc8+ {[%clk 0:30:40]}  Kd6 {[%clk 0:22:47]} 42. h4 {[%clk 1:00:22]}  Rc7 {[%clk 0:21:40]}
43. Rd8+ {[%clk 0:59:16]}  Rd7 {[%clk 0:21:50]} 44. Rg8 {[%clk 0:59:32]}  e4 {[%clk 0:19:48]} 45. h5 {[%clk 0:58:36]}  Ke5 {[%clk 0:15:43]}
46. Re8+ {[%clk 0:58:15]}  Kf4 {[%clk 0:14:55]} 47. Rc8 {[%clk 0:39:11]}  e3 {[%clk 0:13:12]} 48. fxe3+ {[%clk 0:36:44]}  Kxe3 {[%clk 0:13:39]}
49. Rxc5 {[%clk 0:36:53]}  Rd3+ {[%clk 0:14:01]} 50. Kb4 {[%clk 0:36:17]}  Rd2 {[%clk 0:14:24]} 51. b3 {[%clk 0:36:00]}  Rxg2 {[%clk 0:14:22]}
52. Kc3 {[%clk 0:26:13]}  Ke4 {[%clk 0:11:44]} 53. Rc8 {[%clk 0:25:48]}  Rg3+ {[%clk 0:08:29]} 54. Kb4 {[%clk 0:25:55]}  f5 {[%clk 0:07:31]}
55. Re8 {[%clk 0:25:44]}  Kd4 {[%clk 0:07:53]} 56. c5 {[%clk 0:25:59]}  Kd5 {[%clk 0:07:37]} 57. Rf8 {[%clk 0:25:21]}  Ke5 {[%clk 0:03:35]}
58. Rd8 {[%clk 0:24:47]}  Rg1 {[%clk 0:02:13]} 59. Kb5 {[%clk 0:18:57]}  f4 {[%clk 0:02:18]} 60. b4 {[%clk 0:17:42]}  Rc1 {[%clk 0:01:20]}
61. Rf8 {[%clk 0:17:09]}  Rc3 {[%clk 0:01:13]} 62. Kb6 {[%clk 0:17:02]}  f3 {[%clk 0:00:59]} 63. c6 {[%clk 0:16:56]}  Kd6 {[%clk 0:00:45]}
64. b5 {[%clk 0:17:25]}  Ke7 {[%clk 0:00:51]} 65. Rf4 {[%clk 0:17:38]}  Kd6 {[%clk 0:01:00]} 66. Kb7 {[%clk 0:17:58]}  Rc5 {[%clk 0:00:40]}
67. Kb6 {[%clk 0:17:23]}  Rc3 {[%clk 0:00:49]} 68. Rd4 {[%clk 0:16:56]}  Ke5 {[%clk 0:00:43]} 69. Rd1 {[%clk 0:17:10]}  f2 {[%clk 0:00:43]}
70. c7 {[%clk 0:17:29]}  Rf3 {[%clk 0:00:33]} 71. c8=Q {[%clk 0:17:31]}  Rf6+ {[%clk 0:00:50]} 72. Ka5 {[%clk 0:17:54]}  f1=Q {[%clk 0:01:08]}
73. Rxf1 {[%clk 0:18:21]}  Rxf1 {[%clk 0:00:58]} 74. Qc5 {[%clk 0:18:49]} 1-0

[Event "Irish Championship 2026"]
[Site "Talbot Hotel Stillorgan, Co.Dublin, IE"]
[Date "2026.08.09"]
[Round "9"]
[White "Dash, Shaurya"]
[Black "Nichenametla V, Advaith"]
[Result "0-1"]
[Board "77"]
[TimeControl "40/5400+30:1800+30"]
[WhiteFideId "2534789"]
[BlackFideId "2516896"]
[WhiteElo "1751"]
[BlackElo "1943"]
[WhiteClock "0:04:11"]
[BlackClock "0:04:15"]
[Variant "Standard"]
[EndDate "2026.08.09"]
[EndTime "13:36:32"]

1. d4 {[%clk 1:30:56]}  Nf6 {[%clk 1:30:17]} 2. c4 {[%clk 1:31:22]}  e6 {[%clk 1:30:42]} 3. Nc3 {[%clk 1:31:40]}  Bb4 {[%clk 1:30:27]}
4. Qc2 {[%clk 1:31:53]}  c5 {[%clk 1:30:30]} 5. dxc5 {[%clk 1:32:17]}  Bxc5 {[%clk 1:30:21]} 6. Nf3 {[%clk 1:28:34]}  O-O {[%clk 1:23:31]}
7. g3 {[%clk 1:23:24]}  Nc6 {[%clk 1:18:05]} 8. a3 {[%clk 1:22:52]}  a5 {[%clk 1:17:06]} 9. Bg2 {[%clk 1:21:46]}  d6 {[%clk 1:08:37]}
10. O-O {[%clk 1:19:02]}  e5 {[%clk 1:04:50]} 11. Bg5 {[%clk 1:15:35]}  Qe8 {[%clk 0:50:59]} 12. Bxf6 {[%clk 1:12:29]}  gxf6 {[%clk 0:55:02]}
13. Nd5 {[%clk 1:08:13]}  Qd8 {[%clk 0:51:10]} 14. e3 {[%clk 1:04:05]}  f5 {[%clk 0:35:25]} 15. Nh4 {[%clk 0:51:01]}  Qg5 {[%clk 0:35:17]}
16. Qe2 {[%clk 0:40:33]}  e4 {[%clk 0:17:03]} 17. b4 {[%clk 0:39:34]}  axb4 {[%clk 0:16:19]} 18. axb4 {[%clk 0:38:46]}  Rxa1 {[%clk 0:16:36]}
19. Rxa1 {[%clk 0:39:10]}  Bxb4 {[%clk 0:13:54]} 20. Qb2 {[%clk 0:38:46]}  Qg7 {[%clk 0:14:11]} 21. Qxg7+ {[%clk 0:35:01]}  Kxg7 {[%clk 0:14:39]}
22. Bh3 {[%clk 0:34:50]}  Bc5 {[%clk 0:11:53]} 23. Nxf5+ {[%clk 0:27:17]}  Bxf5 {[%clk 0:11:54]} 24. Bxf5 {[%clk 0:27:40]}  Ne5 {[%clk 0:11:55]}
25. Rb1 {[%clk 0:18:05]}  Rb8 {[%clk 0:10:36]} 26. Nc3 {[%clk 0:12:58]}  Nxc4 {[%clk 0:10:03]} 27. Nxe4 {[%clk 0:13:20]}  b5 {[%clk 0:09:55]}
28. Nxc5 {[%clk 0:09:36]}  dxc5 {[%clk 0:10:20]} 29. Rc1 {[%clk 0:10:00]}  h6 {[%clk 0:08:43]} 30. Kf1 {[%clk 0:06:48]}  Kf6 {[%clk 0:07:47]}
31. g4 {[%clk 0:06:50]}  Nd2+ {[%clk 0:06:04]} 32. Ke2 {[%clk 0:06:47]}  Nb3 {[%clk 0:06:30]} 33. Rd1 {[%clk 0:05:42]}  c4 {[%clk 0:04:55]}
34. Bc2 {[%clk 0:05:19]}  Nc5 {[%clk 0:05:08]} 35. Rd5 {[%clk 0:04:37]}  Ne6 {[%clk 0:05:20]} 36. Bf5 {[%clk 0:03:53]}  b4 {[%clk 0:04:31]}
37. Bxe6 {[%clk 0:04:11]}  fxe6 {[%clk 0:04:37]} 38. Rd1 {[%clk 0:03:42]}  c3 {[%clk 0:04:13]} 39. Rc1 {[%clk 0:03:45]}  Rd8 {[%clk 0:03:53]}
40. Rc2 {[%clk 0:03:56]}  Ke5 {[%clk 0:03:34]} 41. f4+ {[%clk 0:04:05]}  Kd5 {[%clk 0:03:33]} 42. Kd3 {[%clk 0:03:56]}  Kc5+ {[%clk 0:03:57]}
43. Ke4 {[%clk 0:04:15]}  Rd2 {[%clk 0:04:11]} 0-1

[Event "Irish Championship 2026"]
[Site "Talbot Hotel Stillorgan, Co.Dublin, IE"]
[Date "2026.08.09"]
[Round "9"]
[White "OBrien, James Joseph"]
[Black "Lorigan, Maxim"]
[Result "1/2-1/2"]
[Board "78"]
[TimeControl "40/5400+30:1800+30"]
[WhiteFideId "2518813"]
[BlackFideId "2518198"]
[WhiteElo "1914"]
[BlackElo "1762"]
[WhiteClock "0:25:09"]
[BlackClock "0:18:34"]
[Variant "Standard"]
[EndDate "2026.08.09"]
[EndTime "14:18:29"]

1. e4 {[%clk 1:30:33]}  Nf6 {[%clk 1:30:43]} 2. e5 {[%clk 1:30:56]}  Nd5 {[%clk 1:31:07]} 3. Nc3 {[%clk 1:31:21]}  Nb6 {[%clk 1:27:53]}
4. a4 {[%clk 1:31:40]}  a5 {[%clk 1:27:16]} 5. d4 {[%clk 1:29:32]}  d6 {[%clk 1:27:16]} 6. Nf3 {[%clk 1:29:32]}  Bg4 {[%clk 1:27:16]}
7. exd6 {[%clk 1:29:32]}  exd6 {[%clk 1:27:16]} 8. Be2 {[%clk 1:29:32]}  Be7 {[%clk 1:27:16]} 9. O-O {[%clk 1:29:32]}  O-O {[%clk 1:17:45]}
10. Ne4 {[%clk 1:22:28]}  N8d7 {[%clk 1:10:24]} 11. Re1 {[%clk 1:19:59]}  d5 {[%clk 1:03:55]} 12. Ng3 {[%clk 1:19:33]}  Bf6 {[%clk 0:59:47]}
13. h3 {[%clk 1:16:38]}  Bxf3 {[%clk 0:59:12]} 14. Bxf3 {[%clk 1:17:04]}  g6 {[%clk 0:57:14]} 15. Bh6 {[%clk 1:13:10]}  Bg7 {[%clk 0:56:15]}
16. Bxg7 {[%clk 1:11:39]}  Kxg7 {[%clk 0:56:37]} 17. Ne2 {[%clk 1:05:05]}  Qf6 {[%clk 0:53:18]} 18. b3 {[%clk 0:58:51]}  c6 {[%clk 0:51:22]}
19. Qd2 {[%clk 0:58:43]}  Rfe8 {[%clk 0:49:47]} 20. Nf4 {[%clk 0:54:46]}  Re7 {[%clk 0:40:03]} 21. Rxe7 {[%clk 0:47:42]}  Qxe7 {[%clk 0:40:30]}
22. g3 {[%clk 0:43:30]}  Nf6 {[%clk 0:36:40]} 23. Re1 {[%clk 0:43:22]}  Qd6 {[%clk 0:35:32]} 24. h4 {[%clk 0:42:25]}  Nbd7 {[%clk 0:30:20]}
25. Re3 {[%clk 0:34:08]}  b6 {[%clk 0:24:32]} 26. Qe2 {[%clk 0:34:08]}  Kf8 {[%clk 0:24:17]} 27. Nd3 {[%clk 0:27:48]}  c5 {[%clk 0:20:34]}
28. dxc5 {[%clk 0:27:28]}  bxc5 {[%clk 0:20:22]} 29. Qd2 {[%clk 0:25:10]}  Ra7 {[%clk 0:18:34]} 30. Nf4 {[%clk 0:25:09]}  d4 {[%clk 0:18:34]}
31. Re1 {[%clk 0:25:09]}  Ne5 {[%clk 0:18:34]} 32. Bg2 {[%clk 0:25:09]}  Nfg4 {[%clk 0:18:34]} 33. Nd3 {[%clk 0:00:00]}  Nxd3 {[%clk 0:18:34]}
34. Qxd3 {[%clk 0:25:09]}  Re7 {[%clk 0:18:34]} 35. Rxe7 {[%clk 0:25:09]}  Qxe7 {[%clk 0:18:34]} 36. Qe4 {[%clk 0:25:09]}  Qxe4 {[%clk 0:18:34]}
37. Bxe4 {[%clk 0:25:09]}  Ke7 {[%clk 0:18:34]} 38. Kf1 {[%clk 0:25:09]}  Kd6 {[%clk 0:18:34]} 39. Ke2 {[%clk 0:25:09]}  f5 {[%clk 0:18:34]}
40. Bd3 {[%clk 0:25:09]}  Ne5 {[%clk 0:18:34]} 41. Bc4 {[%clk 0:25:09]}  Nxc4 {[%clk 0:18:34]} 42. bxc4 {[%clk 0:25:09]}  Ke5 {[%clk 0:18:34]}
43. f3 {[%clk 0:25:09]}  h6 {[%clk 0:18:34]} 44. Kd3 {[%clk 0:25:09]}  g5 {[%clk 0:18:34]} 45. h5 {[%clk 0:25:09]}  g4 {[%clk 0:18:34]}
46. f4+ {[%clk 0:25:09]} 1/2-1/2

[Event "Irish Championship 2026"]
[Site "Talbot Hotel Stillorgan, Co.Dublin, IE"]
[Date "2026.08.09"]
[Round "9"]
[White "Fox, Anthony"]
[Black "Burke, Kevin A."]
[Result "1/2-1/2"]
[Board "79"]
[TimeControl "40/5400+30:1800+30"]
[WhiteFideId "2500736"]
[BlackFideId "2501520"]
[WhiteElo "1876"]
[BlackElo "1896"]
[WhiteClock "0:39:18"]
[BlackClock "0:08:52"]
[Variant "Standard"]
[EndDate "2026.08.09"]
[EndTime "13:23:15"]

1. e4 {[%clk 1:30:56]}  e6 {[%clk 1:30:57]} 2. d4 {[%clk 1:31:08]}  d5 {[%clk 1:31:24]} 3. exd5 {[%clk 1:31:29]}  exd5 {[%clk 1:31:49]}
4. Nf3 {[%clk 1:31:46]}  Bg4 {[%clk 1:32:15]} 5. h3 {[%clk 1:31:43]}  Bh5 {[%clk 1:32:39]} 6. Qe2+ {[%clk 1:31:07]}  Qe7 {[%clk 1:31:02]}
7. Be3 {[%clk 1:31:21]}  Nc6 {[%clk 1:30:25]} 8. Nc3 {[%clk 1:29:33]}  O-O-O {[%clk 1:30:25]} 9. g4 {[%clk 1:29:33]}  Bg6 {[%clk 1:30:25]}
10. O-O-O {[%clk 1:29:33]}  f6 {[%clk 1:30:25]} 11. Bg2 {[%clk 1:29:33]}  Qd7 {[%clk 1:30:25]} 12. a3 {[%clk 1:27:42]}  Nge7 {[%clk 1:20:23]}
13. Nd2 {[%clk 1:23:05]}  Kb8 {[%clk 1:19:22]} 14. Nb3 {[%clk 1:22:47]}  Bf7 {[%clk 1:01:44]} 15. Nc5 {[%clk 1:20:37]}  Qc8 {[%clk 1:01:38]}
16. b4 {[%clk 1:16:23]}  Ng6 {[%clk 0:58:35]} 17. Rhe1 {[%clk 1:10:34]}  Bd6 {[%clk 0:57:50]} 18. Qd2 {[%clk 1:09:22]}  Nge7 {[%clk 0:50:59]}
19. Nb5 {[%clk 1:05:52]}  b6 {[%clk 0:48:36]} 20. Nxd6 {[%clk 1:02:22]}  Rxd6 {[%clk 0:42:39]} 21. Nb3 {[%clk 1:01:55]}  Bg6 {[%clk 0:36:36]}
22. Bf4 {[%clk 1:00:58]}  Qa6 {[%clk 0:29:23]} 23. Kb2 {[%clk 1:00:11]}  Rd7 {[%clk 0:29:03]} 24. Bf1 {[%clk 0:54:50]}  Qb7 {[%clk 0:28:17]}
25. Re3 {[%clk 0:51:46]}  Nc8 {[%clk 0:26:13]} 26. Rde1 {[%clk 0:51:05]}  Nd6 {[%clk 0:25:56]} 27. Bxd6 {[%clk 0:51:04]}  Rxd6 {[%clk 0:22:36]}
28. Bd3 {[%clk 0:50:26]}  Bxd3 {[%clk 0:21:01]} 29. Qxd3 {[%clk 0:50:47]}  Qc8 {[%clk 0:18:53]} 30. Qe2 {[%clk 0:48:27]}  a5 {[%clk 0:10:11]}
31. b5 {[%clk 0:40:56]}  Nd8 {[%clk 0:10:20]} 32. a4 {[%clk 0:39:18]}  Nf7 {[%clk 0:08:52]} 33. Re7 {[%clk 0:39:18]}  Rd7 {[%clk 0:08:52]}
34. Qe6 {[%clk 0:00:00]}  Rxe7 {[%clk 0:08:52]} 35. Qxc8+ {[%clk 0:00:00]}  Kxc8 {[%clk 0:08:52]} 36. Rxe7 {[%clk 0:00:00]}  Rf8 {[%clk 0:08:52]}
37. Nd2 {[%clk 0:00:00]} 1/2-1/2

[Event "Irish Championship 2026"]
[Site "Talbot Hotel Stillorgan, Co.Dublin, IE"]
[Date "2026.08.09"]
[Round "9"]
[White "Andhurthi, Sreeyan"]
[Black "Stokes, Stephen"]
[Result "1/2-1/2"]
[Board "80"]
[TimeControl "40/5400+30:1800+30"]
[WhiteFideId "2523531"]
[BlackFideId "2503530"]
[WhiteElo "1950"]
[BlackElo "1885"]
[WhiteClock "0:03:15"]
[BlackClock "0:42:03"]
[Variant "Standard"]
[EndDate "2026.08.09"]
[EndTime "14:31:53"]

1. e4 {[%clk 1:30:58]}  c5 {[%clk 1:30:47]} 2. b4 {[%clk 1:30:56]}  cxb4 {[%clk 1:30:43]} 3. d4 {[%clk 1:31:17]}  d5 {[%clk 1:30:51]}
4. exd5 {[%clk 1:31:40]}  Nf6 {[%clk 1:31:14]} 5. a3 {[%clk 1:31:52]}  Nxd5 {[%clk 1:30:11]} 6. axb4 {[%clk 1:31:58]}  Nxb4 {[%clk 1:29:25]}
7. c3 {[%clk 1:32:08]}  Nd5 {[%clk 1:22:38]} 8. Nf3 {[%clk 1:32:08]}  e6 {[%clk 1:22:38]} 9. Bd3 {[%clk 1:26:56]}  Qc7 {[%clk 1:21:04]}
10. Qc2 {[%clk 1:23:08]}  h6 {[%clk 1:10:10]} 11. O-O {[%clk 1:21:56]}  Bd6 {[%clk 1:09:29]} 12. Bd2 {[%clk 1:20:44]}  Bd7 {[%clk 1:06:39]}
13. Na3 {[%clk 1:16:58]}  Bxa3 {[%clk 1:01:39]} 14. Rxa3 {[%clk 1:17:12]}  Nc6 {[%clk 1:02:01]} 15. Re1 {[%clk 1:05:47]}  Rc8 {[%clk 1:01:07]}
16. Qb3 {[%clk 1:05:11]}  O-O {[%clk 0:57:57]} 17. Ne5 {[%clk 0:55:18]}  Nxe5 {[%clk 0:57:14]} 18. Rxe5 {[%clk 0:50:51]}  f6 {[%clk 0:57:30]}
19. Re1 {[%clk 0:25:31]}  a6 {[%clk 0:56:18]} 20. g3 {[%clk 0:24:28]}  Rfe8 {[%clk 0:55:40]} 21. Bg6 {[%clk 0:22:45]}  Red8 {[%clk 0:55:15]}
22. Bd3 {[%clk 0:21:34]}  Re8 {[%clk 0:54:53]} 23. c4 {[%clk 0:16:25]}  Ne7 {[%clk 0:53:12]} 24. Bf4 {[%clk 0:14:58]}  Qc6 {[%clk 0:51:37]}
25. Raa1 {[%clk 0:11:51]}  g5 {[%clk 0:49:20]} 26. Bd2 {[%clk 0:09:47]}  Kg7 {[%clk 0:49:28]} 27. Rac1 {[%clk 0:09:35]}  Rb8 {[%clk 0:45:38]}
28. d5 {[%clk 0:08:33]}  Qa4 {[%clk 0:42:42]} 29. Qxa4 {[%clk 0:06:23]}  Bxa4 {[%clk 0:43:05]} 30. Rxe6 {[%clk 0:06:24]}  Bd7 {[%clk 0:42:06]}
31. Rb6 {[%clk 0:03:15]}  Nc8 {[%clk 0:42:03]} 32. Rb2 {[%clk 0:03:15]}  Nd6 {[%clk 0:42:03]} 33. Be3 {[%clk 0:03:15]}  b5 {[%clk 0:42:03]}
34. c5 {[%clk 0:03:15]}  Bf5 {[%clk 0:42:03]} 35. Bf1 {[%clk 0:03:15]}  Nf7 {[%clk 0:42:03]} 36. Ra1 {[%clk 0:03:15]}  Be4 {[%clk 0:42:03]}
37. Rxa6 {[%clk 0:03:15]}  Bxd5 {[%clk 0:42:03]} 38. Rxb5 {[%clk 0:03:15]}  Rbc8 {[%clk 0:42:03]} 39. Rbb6 {[%clk 0:03:15]}  Ne5 {[%clk 0:42:03]}
40. Be2 {[%clk 0:03:15]}  Bc4 {[%clk 0:42:03]} 41. Bxc4 {[%clk 0:03:15]}  Nxc4 {[%clk 0:42:03]} 42. Rxf6 {[%clk 0:03:15]}  Nxe3 {[%clk 0:42:03]}
43. fxe3 {[%clk 0:03:15]}  Rxc5 {[%clk 0:42:03]} 44. Rg6+ {[%clk 0:03:15]}  Kh7 {[%clk 0:42:03]} 45. Rxh6+ {[%clk 0:03:15]}  Kg7 {[%clk 0:42:03]}
46. Rhe6 {[%clk 0:03:15]}  Rd8 {[%clk 0:42:03]} 47. Ra7+ {[%clk 0:03:15]}  Kg8 {[%clk 0:42:03]} 48. Ree7 {[%clk 0:03:15]}  Rc2 {[%clk 0:42:03]}
49. Rg7+ {[%clk 0:03:15]}  Kf8 {[%clk 0:42:03]} 50. Raf7+ {[%clk 0:03:15]}  Ke8 {[%clk 0:42:03]} 51. Rg8+ {[%clk 0:03:15]}  Kxf7 {[%clk 0:42:03]}
52. Rxd8 {[%clk 0:03:15]}  Kf6 {[%clk 0:42:03]} 53. Rf8+ {[%clk 0:03:15]}  Ke5 {[%clk 0:42:03]} 54. Re8+ {[%clk 0:03:15]}  Kf5 {[%clk 0:42:03]}
55. e4+ {[%clk 0:03:15]}  Kg4 {[%clk 0:42:03]} 56. Rf8 {[%clk 0:03:15]}  Re2 {[%clk 0:42:03]} 57. Rf7 {[%clk 0:03:15]}  Rxe4 {[%clk 0:42:03]}
58. Kg2 {[%clk 0:03:15]}  Re2+ {[%clk 0:42:03]} 59. Rf2 {[%clk 0:03:15]}  Rxf2+ {[%clk 0:42:03]} 60. Kxf2 {[%clk 0:03:15]}  Kh3 {[%clk 0:42:03]}
61. Kf3 {[%clk 0:03:15]}  Kxh2 {[%clk 0:42:03]} 62. Kg4 {[%clk 0:03:15]}  Kg2 {[%clk 0:42:03]} 63. Kxg5 {[%clk 0:03:15]} 1/2-1/2

[Event "Irish Championship 2026"]
[Site "Talbot Hotel Stillorgan, Co.Dublin, IE"]
[Date "2026.08.09"]
[Round "9"]
[White "Mulukutla, Ayaansh"]
[Black "Braine, Harry"]
[Result "1/2-1/2"]
[Board "81"]
[TimeControl "40/5400+30:1800+30"]
[WhiteFideId "33391998"]
[BlackFideId "2518570"]
[WhiteElo "1839"]
[BlackElo "1948"]
[WhiteClock "0:22:01"]
[BlackClock "0:26:11"]
[Variant "Standard"]

1. e4 {[%clk 1:30:51]}  c5 {[%clk 1:30:45]} 2. Nf3 {[%clk 1:31:17]}  e6 {[%clk 1:31:07]} 3. d4 {[%clk 1:31:41]}  cxd4 {[%clk 1:31:32]}
4. Nxd4 {[%clk 1:32:06]}  Nf6 {[%clk 1:31:55]} 5. Nc3 {[%clk 1:32:26]}  Nc6 {[%clk 1:32:17]} 6. a3 {[%clk 1:32:00]}  Be7 {[%clk 1:31:29]}
7. Nxc6 {[%clk 1:31:44]}  bxc6 {[%clk 1:31:28]} 8. e5 {[%clk 1:31:14]}  Nd5 {[%clk 1:31:28]} 9. Qg4 {[%clk 1:31:14]}  g6 {[%clk 1:28:11]}
10. Ne4 {[%clk 1:20:03]}  f5 {[%clk 1:22:44]} 11. exf6 {[%clk 1:19:37]}  Nxf6 {[%clk 1:23:01]} 12. Nxf6+ {[%clk 1:19:39]}  Bxf6 {[%clk 1:23:21]}
13. h4 {[%clk 1:13:01]}  Qa5+ {[%clk 1:19:08]} 14. Bd2 {[%clk 1:03:38]}  Qe5+ {[%clk 1:16:03]} 15. Be2 {[%clk 1:00:55]}  Qxb2 {[%clk 1:13:09]}
16. Rd1 {[%clk 0:59:55]}  Qxc2 {[%clk 1:11:05]} 17. O-O {[%clk 0:56:29]}  Qf5 {[%clk 1:05:32]} 18. Qa4 {[%clk 0:47:26]}  O-O {[%clk 0:58:12]}
19. h5 {[%clk 0:38:33]}  gxh5 {[%clk 0:55:18]} 20. Bh6 {[%clk 0:38:22]}  Bg7 {[%clk 0:51:18]} 21. Bxg7 {[%clk 0:37:18]}  Kxg7 {[%clk 0:51:40]}
22. Rd3 {[%clk 0:36:03]}  Qc5 {[%clk 0:34:09]} 23. Rg3+ {[%clk 0:31:43]}  Kh8 {[%clk 0:31:26]} 24. Qh4 {[%clk 0:30:25]}  Rb8 {[%clk 0:18:32]}
25. Rg5 {[%clk 0:23:30]}  d5 {[%clk 0:26:11]} 26. Rxh5 {[%clk 0:22:01]} 1/2-1/2